[Event "Late-Titled-Tuesday-Blitz-June-04-2024"]
[Site "Chess.com"]
[Date "2024.06.04"]
[Round "1"]
[White "ahkashefi2800"]
[Black "MuhittinBuker"]
[Result "1-0"]
[WhiteElo "2568"]
[BlackElo "2228"]
[TimeControl "180+1"]
[EndTime "14:07:50 PDT"]
[Termination "ahkashefi2800 won by resignation"]

1. d4 {[%clk 0:02:54.9]} 1... Nf6 {[%clk 0:02:58.7]} 2. Nf3 {[%clk 0:02:53.9]}
2... d5 {[%clk 0:02:58.1]} 3. Bg5 {[%clk 0:02:53.4]} 3... Bf5 {[%clk 0:02:57]}
4. Bxf6 {[%clk 0:02:48.4]} 4... exf6 {[%clk 0:02:55.9]} 5. g3 {[%clk 0:02:47.8]}
5... Bd6 {[%clk 0:02:55]} 6. Bg2 {[%clk 0:02:47.4]} 6... O-O {[%clk 0:02:55.4]}
7. O-O {[%clk 0:02:47.6]} 7... h6 {[%clk 0:02:53.3]} 8. c4 {[%clk 0:02:46.6]}
8... c6 {[%clk 0:02:53.1]} 9. cxd5 {[%clk 0:02:46.8]} 9... cxd5 {[%clk
0:02:52.6]} 10. Nc3 {[%clk 0:02:47.5]} 10... Be6 {[%clk 0:02:38.9]} 11. Qb3
{[%clk 0:02:45.4]} 11... Qb6 {[%clk 0:02:32.3]} 12. Rfc1 {[%clk 0:02:39.6]}
12... Qxb3 {[%clk 0:02:30.6]} 13. axb3 {[%clk 0:02:39.6]} 13... Nc6 {[%clk
0:02:30.5]} 14. e3 {[%clk 0:02:39.5]} 14... Nb4 {[%clk 0:02:27]} 15. Ne1 {[%clk
0:02:37.6]} 15... a6 {[%clk 0:02:24.8]} 16. Na4 {[%clk 0:02:32.2]} 16... Rfc8
{[%clk 0:02:14]} 17. Nb6 {[%clk 0:02:31.5]} 17... Rxc1 {[%clk 0:02:13.3]} 18.
Rxc1 {[%clk 0:02:31.2]} 18... Rd8 {[%clk 0:02:12.2]} 19. Rc3 {[%clk 0:02:27.1]}
19... Bb8 {[%clk 0:02:06.5]} 20. Nd3 {[%clk 0:02:22.3]} 20... Nxd3 {[%clk
0:02:02.7]} 21. Rxd3 {[%clk 0:02:22]} 21... Ba7 {[%clk 0:02:02.9]} 22. Na4
{[%clk 0:02:20.9]} 22... Rc8 {[%clk 0:02:02]} 23. Rc3 {[%clk 0:02:21.1]} 23...
Rc6 {[%clk 0:01:57.5]} 24. Kf1 {[%clk 0:02:14.8]} 24... Kf8 {[%clk 0:01:57.9]}
25. b4 {[%clk 0:02:12]} 25... Ke7 {[%clk 0:01:56]} 26. Ke2 {[%clk 0:02:12.1]}
26... Kd6 {[%clk 0:01:55.5]} 27. Kd2 {[%clk 0:02:12.1]} 27... b6 {[%clk
0:01:54.6]} 28. Rxc6+ {[%clk 0:02:08.2]} 28... Kxc6 {[%clk 0:01:53.5]} 29. Nc3
{[%clk 0:02:08.6]} 29... b5 {[%clk 0:01:52]} 30. h4 {[%clk 0:02:05.7]} 30... Bb8
{[%clk 0:01:52.3]} 31. Kc2 {[%clk 0:02:02.7]} 31... Bd6 {[%clk 0:01:51.5]} 32.
Kb3 {[%clk 0:02:02.9]} 32... h5 {[%clk 0:01:50.5]} 33. Bf3 {[%clk 0:02:02.3]}
33... g6 {[%clk 0:01:49.6]} 34. Ne2 {[%clk 0:02:02.6]} 34... Bf5 {[%clk
0:01:40.1]} 35. Kc3 {[%clk 0:01:53]} 35... Bc7 {[%clk 0:01:33.4]} 36. Nc1 {[%clk
0:01:52.4]} 36... a5 {[%clk 0:01:31.2]} 37. Nb3 {[%clk 0:01:51.7]} 37... a4
{[%clk 0:01:28.2]} 38. Nc5 {[%clk 0:01:51.8]} 38... Bd6 {[%clk 0:01:23.4]} 39.
Be2 {[%clk 0:01:51.2]} 39... Bc8 {[%clk 0:01:18.2]} 40. Bd3 {[%clk 0:01:50.2]}
40... g5 {[%clk 0:01:15.5]} 41. Be2 {[%clk 0:01:47.9]} 41... g4 {[%clk
0:01:11.6]} 42. Bd3 {[%clk 0:01:47.7]} 42... f5 {[%clk 0:01:11.2]} 43. Bb1
{[%clk 0:01:47]} 43... f6 {[%clk 0:00:55.8]} 44. Bd3 {[%clk 0:01:44.5]} 44...
Bc7 {[%clk 0:00:46.9]} 45. Kc2 {[%clk 0:01:44.6]} 45... Bd6 {[%clk 0:00:46.4]}
46. Kb1 {[%clk 0:01:44.8]} 46... Bc7 {[%clk 0:00:46.8]} 47. Ka2 {[%clk
0:01:44.7]} 47... Bd6 {[%clk 0:00:46.9]} 48. b3 {[%clk 0:01:45]} 48... axb3+
{[%clk 0:00:44.5]} 49. Kxb3 {[%clk 0:01:45.3]} 49... Bc7 {[%clk 0:00:44.3]} 50.
Kc3 {[%clk 0:01:43.8]} 50... Bd6 {[%clk 0:00:44.4]} 51. Be2 {[%clk 0:01:42.9]}
51... Bc7 {[%clk 0:00:44.5]} 52. Nb3 {[%clk 0:01:42.4]} 52... Bd6 {[%clk
0:00:44]} 53. Na5+ {[%clk 0:01:42.4]} 53... Kb6 {[%clk 0:00:43.3]} 54. Bd1
{[%clk 0:01:42.6]} 54... Be6 {[%clk 0:00:41.8]} 55. Nb3 {[%clk 0:01:42.4]} 55...
Kc6 {[%clk 0:00:40.8]} 56. Nc5 {[%clk 0:01:42.7]} 56... Bc8 {[%clk 0:00:40.2]}
57. Bb3 {[%clk 0:01:41.8]} 57... Bc7 {[%clk 0:00:38.5]} 58. Kb2 {[%clk 0:01:34]}
58... Bd6 {[%clk 0:00:38.6]} 59. Ka3 {[%clk 0:01:34]} 59... Bc7 {[%clk
0:00:38.6]} 60. Nd3 {[%clk 0:01:33.6]} 60... Bd6 {[%clk 0:00:38.1]} 61. Nb2
{[%clk 0:01:33.5]} 61... Bc7 {[%clk 0:00:37.7]} 62. Nd1 {[%clk 0:01:33.5]} 62...
Bd6 {[%clk 0:00:37.7]} 63. Nc3 {[%clk 0:01:33.8]} 63... Be6 {[%clk 0:00:36.7]}
64. Bc2 {[%clk 0:01:33.6]} 64... Bc7 {[%clk 0:00:36.5]} 65. Bd3 {[%clk
0:01:33.4]} 65... Kb6 {[%clk 0:00:20.3]} 66. Bxb5 {[%clk 0:01:31.9]} 66... Bd6
{[%clk 0:00:16.5]} 67. Be8 {[%clk 0:01:31.1]} 67... Be7 {[%clk 0:00:14.2]} 68.
Bxh5 {[%clk 0:01:31.1]} 68... Bf8 {[%clk 0:00:13.9]} 69. Be8 {[%clk 0:01:31.2]}
69... Bh6 {[%clk 0:00:12.4]} 70. Ba4 {[%clk 0:01:29.1]} 70... Bf8 {[%clk
0:00:11.6]} 71. Bc2 {[%clk 0:01:28.2]} 71... Bh6 {[%clk 0:00:11.3]} 72. Bd3
{[%clk 0:01:24.2]} 72... Bf8 {[%clk 0:00:10.3]} 73. Kb3 {[%clk 0:01:23.5]} 73...
Bh6 {[%clk 0:00:10]} 74. Na4+ {[%clk 0:01:23.6]} 74... Kc6 {[%clk 0:00:09.2]}
75. b5+ {[%clk 0:01:23.9]} 75... Kb7 {[%clk 0:00:09.1]} 76. Nc5+ {[%clk
0:01:23.8]} 1-0

[Event "Late-Titled-Tuesday-Blitz-June-04-2024"]
[Site "Chess.com"]
[Date "2024.06.04"]
[Round "1"]
[White "Mariia89"]
[Black "DishonorOnYourCow"]
[Result "0-1"]
[WhiteElo "2247"]
[BlackElo "2577"]
[TimeControl "180+1"]
[EndTime "14:07:51 PDT"]
[Termination "DishonorOnYourCow won by resignation"]

1. d4 {[%clk 0:03:00.2]} 1... Nf6 {[%clk 0:02:59.1]} 2. Nf3 {[%clk 0:03:00.4]}
2... g6 {[%clk 0:02:57.3]} 3. c4 {[%clk 0:03:00.2]} 3... Bg7 {[%clk 0:02:57.8]}
4. Nc3 {[%clk 0:03:00.7]} 4... d5 {[%clk 0:02:58.1]} 5. Bg5 {[%clk 0:03:00.4]}
5... Ne4 {[%clk 0:02:57.7]} 6. cxd5 {[%clk 0:03:00.9]} 6... Nxg5 {[%clk
0:02:58]} 7. Nxg5 {[%clk 0:03:01.8]} 7... e6 {[%clk 0:02:58.6]} 8. Nf3 {[%clk
0:03:02.3]} 8... exd5 {[%clk 0:02:58.9]} 9. e3 {[%clk 0:03:03]} 9... O-O {[%clk
0:02:59.4]} 10. Be2 {[%clk 0:03:03.7]} 10... a5 {[%clk 0:02:53.6]} 11. O-O
{[%clk 0:03:03.7]} 11... c6 {[%clk 0:02:53.5]} 12. h3 {[%clk 0:02:48.5]} 12...
Qd6 {[%clk 0:02:51.7]} 13. a3 {[%clk 0:02:43]} 13... Bf5 {[%clk 0:02:46.7]} 14.
Na4 {[%clk 0:02:36.9]} 14... Nd7 {[%clk 0:02:45.9]} 15. Rc1 {[%clk 0:02:33.9]}
15... Rfc8 {[%clk 0:02:38.8]} 16. Qd2 {[%clk 0:02:26.2]} 16... Nf6 {[%clk
0:02:37.4]} 17. Nb6 {[%clk 0:02:15]} 17... Ne4 {[%clk 0:02:11.3]} 18. Qd1 {[%clk
0:02:15]} 18... c5 {[%clk 0:02:02.2]} 19. Nxa8 {[%clk 0:02:13.3]} 19... Rxa8
{[%clk 0:02:01.6]} 20. dxc5 {[%clk 0:02:09.7]} 20... Nxc5 {[%clk 0:02:01.9]} 21.
Nd4 {[%clk 0:02:09.6]} 21... Bd7 {[%clk 0:02:01]} 22. Bf3 {[%clk 0:02:04.7]}
22... Ba4 {[%clk 0:01:48.1]} 23. Qe2 {[%clk 0:01:42.4]} 23... Rd8 {[%clk
0:01:41.4]} 24. Rc3 {[%clk 0:01:23.5]} 24... Ne4 {[%clk 0:01:27.1]} 25. Rcc1
{[%clk 0:01:08.8]} 25... Qb6 {[%clk 0:01:17.1]} 26. Rfe1 {[%clk 0:00:35.7]}
26... f5 {[%clk 0:00:47.3]} 27. h4 {[%clk 0:00:25.2]} 27... Bxd4 {[%clk
0:00:45]} 28. exd4 {[%clk 0:00:24.8]} 28... Qxd4 {[%clk 0:00:45.4]} 29. Bxe4
{[%clk 0:00:23]} 29... fxe4 {[%clk 0:00:41.9]} 30. Rc7 {[%clk 0:00:20.3]} 30...
Bc6 {[%clk 0:00:35.5]} 31. Qg4 {[%clk 0:00:17.7]} 31... Qf6 {[%clk 0:00:34.2]}
32. Qg5 {[%clk 0:00:15.7]} 32... Qxg5 {[%clk 0:00:25.5]} 33. hxg5 {[%clk
0:00:16.6]} 33... d4 {[%clk 0:00:25.9]} 34. Rd1 {[%clk 0:00:12.6]} 34... d3
{[%clk 0:00:17.4]} 35. Kf1 {[%clk 0:00:11.1]} 35... d2 {[%clk 0:00:14.1]} 36.
Ke2 {[%clk 0:00:09.3]} 36... Bb5+ {[%clk 0:00:14.4]} 37. Ke3 {[%clk 0:00:09.5]}
37... Rd3+ {[%clk 0:00:14.6]} 38. Kxe4 {[%clk 0:00:09.7]} 38... Rd6 {[%clk
0:00:10.3]} 39. Kf4 {[%clk 0:00:09.1]} 39... Ba4 {[%clk 0:00:09.9]} 40. Rxd2
{[%clk 0:00:07.1]} 40... Rxd2 {[%clk 0:00:09.8]} 41. Rxb7 {[%clk 0:00:07.6]}
41... Rxf2+ {[%clk 0:00:09.6]} 42. Kg3 {[%clk 0:00:08.1]} 42... Rxg2+ {[%clk
0:00:09.5]} 43. Kxg2 {[%clk 0:00:07.9]} 43... Bc6+ {[%clk 0:00:10.1]} 44. Kg3
{[%clk 0:00:08.2]} 44... Bxb7 {[%clk 0:00:11]} 45. b4 {[%clk 0:00:08.5]} 45...
axb4 {[%clk 0:00:10.9]} 46. axb4 {[%clk 0:00:09.4]} 46... Kf7 {[%clk 0:00:11.4]}
47. Kf4 {[%clk 0:00:10]} 47... Ke6 {[%clk 0:00:12]} 48. Ke3 {[%clk 0:00:08.9]}
48... Kf5 {[%clk 0:00:12.3]} 49. Kd4 {[%clk 0:00:09.8]} 49... Kxg5 {[%clk
0:00:12.7]} 50. Kc5 {[%clk 0:00:09.8]} 50... h5 {[%clk 0:00:13.1]} 51. Kb6
{[%clk 0:00:10.7]} 51... Be4 {[%clk 0:00:13.2]} 52. b5 {[%clk 0:00:11.5]} 52...
h4 {[%clk 0:00:13.4]} 53. Kc7 {[%clk 0:00:11.7]} 53... h3 {[%clk 0:00:13.7]} 0-1

[Event "Late-Titled-Tuesday-Blitz-June-04-2024"]
[Site "Chess.com"]
[Date "2024.06.04"]
[Round "1"]
[White "andrejljepic"]
[Black "Nor1lsk"]
[Result "0-1"]
[WhiteElo "2408"]
[BlackElo "2724"]
[TimeControl "180+1"]
[EndTime "14:07:53 PDT"]
[Termination "Nor1lsk won by resignation"]

1. e4 {[%clk 0:03:00.9]} 1... c5 {[%clk 0:03:00.2]} 2. Nf3 {[%clk 0:03:01]} 2...
e6 {[%clk 0:03:00.5]} 3. c3 {[%clk 0:03:01.4]} 3... Nf6 {[%clk 0:03:00.1]} 4. e5
{[%clk 0:03:01.4]} 4... Nd5 {[%clk 0:03:00.5]} 5. Bc4 {[%clk 0:03:01.5]} 5...
Nc6 {[%clk 0:02:50.6]} 6. d4 {[%clk 0:03:00.2]} 6... cxd4 {[%clk 0:02:49]} 7.
cxd4 {[%clk 0:03:01.1]} 7... d6 {[%clk 0:02:48]} 8. O-O {[%clk 0:03:00.6]} 8...
Be7 {[%clk 0:02:47.2]} 9. Qe2 {[%clk 0:02:56.5]} 9... O-O {[%clk 0:02:45.7]} 10.
Rd1 {[%clk 0:02:56.5]} 10... b6 {[%clk 0:02:28.1]} 11. Bxd5 {[%clk 0:02:46.1]}
11... exd5 {[%clk 0:02:27.6]} 12. Nc3 {[%clk 0:02:46.2]} 12... dxe5 {[%clk
0:02:26.1]} 13. dxe5 {[%clk 0:02:34.7]} 13... Be6 {[%clk 0:02:25.3]} 14. Nb5
{[%clk 0:02:13.2]} 14... Bg4 {[%clk 0:02:18]} 15. h3 {[%clk 0:02:09.9]} 15...
Bh5 {[%clk 0:02:17.3]} 16. Bf4 {[%clk 0:01:57]} 16... a6 {[%clk 0:02:12.9]} 17.
Nd6 {[%clk 0:01:39.3]} 17... f6 {[%clk 0:01:57.2]} 18. Qd2 {[%clk 0:01:24.9]}
18... Bxf3 {[%clk 0:01:54.4]} 19. gxf3 {[%clk 0:01:23.9]} 19... d4 {[%clk
0:01:31.4]} 20. Nc4 {[%clk 0:00:37.6]} 20... Bc5 {[%clk 0:01:13.5]} 21. e6
{[%clk 0:00:22.9]} 21... Qd5 {[%clk 0:01:12.2]} 22. Qe2 {[%clk 0:00:22.7]} 22...
Rfe8 {[%clk 0:01:07.1]} 23. Re1 {[%clk 0:00:21.6]} 23... Qf5 {[%clk 0:00:54.6]}
24. Qe4 {[%clk 0:00:20.5]} 24... Ne7 {[%clk 0:00:41.4]} 25. Nd6 {[%clk
0:00:15.5]} 25... Bxd6 {[%clk 0:00:32.6]} 26. Bxd6 {[%clk 0:00:16.4]} 26... Qxe4
{[%clk 0:00:25.1]} 27. Rxe4 {[%clk 0:00:15.8]} 27... Nf5 {[%clk 0:00:24.8]} 28.
Bc7 {[%clk 0:00:15.7]} 28... b5 {[%clk 0:00:24.3]} 29. Rf4 {[%clk 0:00:15.2]}
29... g6 {[%clk 0:00:24.1]} 30. Re4 {[%clk 0:00:15.2]} 30... Rac8 {[%clk
0:00:20.3]} 31. Bb6 {[%clk 0:00:15.7]} 31... Rc6 {[%clk 0:00:17.3]} 32. Bxd4
{[%clk 0:00:15.2]} 32... Rcxe6 {[%clk 0:00:17.6]} 33. Rxe6 {[%clk 0:00:12.9]}
33... Rxe6 {[%clk 0:00:18.5]} 34. Bc3 {[%clk 0:00:13.6]} 34... Kf7 {[%clk
0:00:17.9]} 35. Kg2 {[%clk 0:00:11.2]} 35... h5 {[%clk 0:00:13.4]} 36. Rd1
{[%clk 0:00:11.7]} 36... Rd6 {[%clk 0:00:13.4]} 37. Rxd6 {[%clk 0:00:11.5]}
37... Nxd6 {[%clk 0:00:14.3]} 38. f4 {[%clk 0:00:12.1]} 38... f5 {[%clk
0:00:14.2]} 39. Kf3 {[%clk 0:00:12.6]} 39... Ke6 {[%clk 0:00:14]} 40. b3 {[%clk
0:00:12.5]} 40... Ne4 {[%clk 0:00:14]} 41. Bd4 {[%clk 0:00:12.3]} 41... Kd5
{[%clk 0:00:13.7]} 42. Bb2 {[%clk 0:00:12.9]} 42... a5 {[%clk 0:00:13.2]} 43.
Ke3 {[%clk 0:00:13.6]} 43... a4 {[%clk 0:00:13.5]} 44. Be5 {[%clk 0:00:14.1]}
44... axb3 {[%clk 0:00:12.2]} 45. axb3 {[%clk 0:00:15]} 45... Nc5 {[%clk
0:00:12.5]} 46. b4 {[%clk 0:00:15.7]} 46... Na6 {[%clk 0:00:12]} 47. Bc3 {[%clk
0:00:16.4]} 47... Kc4 {[%clk 0:00:11.8]} 48. Be1 {[%clk 0:00:17.1]} 48... Nxb4
{[%clk 0:00:12.1]} 49. Bxb4 {[%clk 0:00:17.5]} 49... Kxb4 {[%clk 0:00:12.4]} 50.
Kd4 {[%clk 0:00:18.4]} 50... Ka3 {[%clk 0:00:13]} 51. Ke5 {[%clk 0:00:19.2]}
51... b4 {[%clk 0:00:13.9]} 52. Kf6 {[%clk 0:00:20.1]} 52... b3 {[%clk
0:00:14.8]} 53. Kxg6 {[%clk 0:00:21]} 53... b2 {[%clk 0:00:15.7]} 54. Kxf5
{[%clk 0:00:21.2]} 54... b1=Q+ {[%clk 0:00:16.6]} 55. Ke6 {[%clk 0:00:22]} 55...
Qe1+ {[%clk 0:00:16.8]} 56. Kf6 {[%clk 0:00:21.6]} 56... Qxf2 {[%clk 0:00:17.7]}
57. f5 {[%clk 0:00:22.5]} 57... Qg3 {[%clk 0:00:17.4]} 58. Ke6 {[%clk
0:00:22.7]} 58... Qxh3 {[%clk 0:00:17.5]} 59. Ke5 {[%clk 0:00:22]} 59... Qe3+
{[%clk 0:00:16.8]} 0-1

[Event "Late-Titled-Tuesday-Blitz-June-04-2024"]
[Site "Chess.com"]
[Date "2024.06.04"]
[Round "1"]
[White "BabageldiAnnaberdiyev"]
[Black "JEIGOTH"]
[Result "1-0"]
[WhiteElo "2616"]
[BlackElo "2297"]
[TimeControl "180+1"]
[EndTime "14:07:53 PDT"]
[Termination "BabageldiAnnaberdiyev won by checkmate"]

1. e4 {[%clk 0:02:59]} 1... d6 {[%clk 0:02:57.1]} 2. d4 {[%clk 0:02:58.2]} 2...
Nd7 {[%clk 0:02:57.1]} 3. Nc3 {[%clk 0:02:58.6]} 3... e5 {[%clk 0:02:57.6]} 4.
Nf3 {[%clk 0:02:58.9]} 4... Ngf6 {[%clk 0:02:56.8]} 5. Bc4 {[%clk 0:02:58.8]}
5... Be7 {[%clk 0:02:57.1]} 6. O-O {[%clk 0:02:58.5]} 6... O-O {[%clk
0:02:55.4]} 7. h3 {[%clk 0:02:55.9]} 7... c6 {[%clk 0:02:55.4]} 8. a4 {[%clk
0:02:55.3]} 8... b6 {[%clk 0:02:52.8]} 9. d5 {[%clk 0:02:53.7]} 9... cxd5 {[%clk
0:02:48.4]} 10. Nxd5 {[%clk 0:02:52.1]} 10... Nxd5 {[%clk 0:02:47.7]} 11. Bxd5
{[%clk 0:02:53]} 11... Rb8 {[%clk 0:02:47.6]} 12. Re1 {[%clk 0:02:33.7]} 12...
Kh8 {[%clk 0:02:46.2]} 13. c3 {[%clk 0:02:05.3]} 13... Nc5 {[%clk 0:02:37]} 14.
Be3 {[%clk 0:01:57.9]} 14... f5 {[%clk 0:02:32.5]} 15. Bxc5 {[%clk 0:01:57.2]}
15... bxc5 {[%clk 0:02:28.5]} 16. Rb1 {[%clk 0:01:42]} 16... f4 {[%clk 0:02:16]}
17. b4 {[%clk 0:01:34]} 17... Qc7 {[%clk 0:01:56.6]} 18. b5 {[%clk 0:01:29.2]}
18... Rf6 {[%clk 0:01:48.3]} 19. Kf1 {[%clk 0:01:25.8]} 19... a6 {[%clk
0:01:21.5]} 20. c4 {[%clk 0:01:24.5]} 20... a5 {[%clk 0:01:06.4]} 21. Ke2 {[%clk
0:01:23.4]} 21... Bb7 {[%clk 0:01:01.8]} 22. Qd3 {[%clk 0:01:21.3]} 22... Rg6
{[%clk 0:00:51.5]} 23. Rg1 {[%clk 0:01:20.1]} 23... h6 {[%clk 0:00:40.5]} 24.
Rbd1 {[%clk 0:01:18.7]} 24... Bc8 {[%clk 0:00:38.8]} 25. Rb1 {[%clk 0:01:14.8]}
25... Bb7 {[%clk 0:00:36.6]} 26. Bxb7 {[%clk 0:01:13.9]} 26... Qxb7 {[%clk
0:00:35.7]} 27. Rbd1 {[%clk 0:01:13.5]} 27... Rf6 {[%clk 0:00:29.9]} 28. Qd5
{[%clk 0:01:11.2]} 28... Qxd5 {[%clk 0:00:29.1]} 29. Rxd5 {[%clk 0:01:12.1]}
29... g6 {[%clk 0:00:25.7]} 30. Nd2 {[%clk 0:01:11.4]} 30... Bd8 {[%clk
0:00:19.8]} 31. Rd3 {[%clk 0:01:11.8]} 31... Kg8 {[%clk 0:00:20]} 32. Nb1 {[%clk
0:01:12.2]} 32... Kf7 {[%clk 0:00:20.4]} 33. Nc3 {[%clk 0:01:12.7]} 33... Re6
{[%clk 0:00:16]} 34. Nd5 {[%clk 0:01:12.7]} 34... Re8 {[%clk 0:00:16]} 35. g3
{[%clk 0:01:11.7]} 35... g5 {[%clk 0:00:13.8]} 36. gxf4 {[%clk 0:01:08.9]} 36...
exf4 {[%clk 0:00:14.7]} 37. f3 {[%clk 0:01:05]} 37... Bf6 {[%clk 0:00:15]} 38.
Rh1 {[%clk 0:01:02.9]} 38... Bd4 {[%clk 0:00:13.4]} 39. Rxd4 {[%clk 0:01:01.4]}
39... cxd4 {[%clk 0:00:13.5]} 40. Kd3 {[%clk 0:01:02.3]} 40... Rbc8 {[%clk
0:00:10.6]} 41. Kxd4 {[%clk 0:01:01.5]} 41... Rc5 {[%clk 0:00:11.2]} 42. Rc1
{[%clk 0:00:56]} 42... Rec8 {[%clk 0:00:11.3]} 43. b6 {[%clk 0:00:56.1]} 43...
Ke6 {[%clk 0:00:06.5]} 44. b7 {[%clk 0:00:48.7]} 44... Rb8 {[%clk 0:00:04.4]}
45. Rb1 {[%clk 0:00:49.2]} 45... Kd7 {[%clk 0:00:03.9]} 46. Rb6 {[%clk
0:00:33.9]} 46... Rc6 {[%clk 0:00:03.8]} 47. Rb5 {[%clk 0:00:33.7]} 47... Rc5
{[%clk 0:00:03.7]} 48. Rxc5 {[%clk 0:00:32.4]} 48... dxc5+ {[%clk 0:00:04.6]}
49. Kxc5 {[%clk 0:00:32.4]} 49... h5 {[%clk 0:00:03.6]} 50. Kb6 {[%clk
0:00:32.2]} 50... g4 {[%clk 0:00:03.9]} 51. hxg4 {[%clk 0:00:31.1]} 51... hxg4
{[%clk 0:00:04.3]} 52. c5 {[%clk 0:00:24.2]} 52... g3 {[%clk 0:00:02]} 53. c6+
{[%clk 0:00:24.6]} 53... Kd6 {[%clk 0:00:02.6]} 54. c7 {[%clk 0:00:24]} 54...
Rg8 {[%clk 0:00:02.5]} 55. b8=Q {[%clk 0:00:23.7]} 55... g2 {[%clk 0:00:02.3]}
56. c8=Q# {[%clk 0:00:23.4]} 1-0

[Event "Late-Titled-Tuesday-Blitz-June-04-2024"]
[Site "Chess.com"]
[Date "2024.06.04"]
[Round "1"]
[White "Der_Balak_3Halak"]
[Black "bipe137"]
[Result "0-1"]
[WhiteElo "2377"]
[BlackElo "2690"]
[TimeControl "180+1"]
[EndTime "14:07:55 PDT"]
[Termination "bipe137 won by resignation"]

1. e4 {[%clk 0:03:00.9]} 1... c5 {[%clk 0:02:55.7]} 2. Nf3 {[%clk 0:03:00.7]}
2... e6 {[%clk 0:02:55.7]} 3. c4 {[%clk 0:02:59.6]} 3... Nc6 {[%clk 0:02:55.7]}
4. Nc3 {[%clk 0:02:59.9]} 4... Nf6 {[%clk 0:02:55.4]} 5. d3 {[%clk 0:03:00.1]}
5... d5 {[%clk 0:02:54.7]} 6. exd5 {[%clk 0:02:56.5]} 6... exd5 {[%clk
0:02:54.7]} 7. g3 {[%clk 0:02:50.9]} 7... dxc4 {[%clk 0:02:48]} 8. dxc4 {[%clk
0:02:50.4]} 8... Qxd1+ {[%clk 0:02:47.5]} 9. Nxd1 {[%clk 0:02:47.4]} 9... Bg4
{[%clk 0:02:47.9]} 10. Be2 {[%clk 0:02:44.7]} 10... O-O-O {[%clk 0:02:44.7]} 11.
Ne3 {[%clk 0:02:17.7]} 11... Bh3 {[%clk 0:02:41.1]} 12. Ng5 {[%clk 0:02:08.2]}
12... Be6 {[%clk 0:02:34.4]} 13. O-O {[%clk 0:02:07.5]} 13... Nd4 {[%clk
0:02:33.9]} 14. Bd1 {[%clk 0:02:01]} 14... Bd6 {[%clk 0:02:24.5]} 15. f4 {[%clk
0:01:57.5]} 15... Rhe8 {[%clk 0:02:20.3]} 16. Nxe6 {[%clk 0:01:55.7]} 16... Rxe6
{[%clk 0:02:19.5]} 17. Nd5 {[%clk 0:01:53.5]} 17... Nxd5 {[%clk 0:02:14.4]} 18.
cxd5 {[%clk 0:01:54.4]} 18... Re4 {[%clk 0:02:13.1]} 19. b3 {[%clk 0:01:36]}
19... Be7 {[%clk 0:02:10.4]} 20. Bb2 {[%clk 0:01:20.8]} 20... Rxd5 {[%clk
0:02:07.3]} 21. Bxd4 {[%clk 0:01:15.9]} 21... Rdxd4 {[%clk 0:01:58.6]} 22. Bf3
{[%clk 0:01:11.3]} 22... Re3 {[%clk 0:01:57]} 23. Rae1 {[%clk 0:01:11.2]} 23...
Rxe1 {[%clk 0:01:56.9]} 24. Rxe1 {[%clk 0:01:12.1]} 24... Bf6 {[%clk 0:01:54.8]}
25. Re8+ {[%clk 0:01:08.2]} 25... Kc7 {[%clk 0:01:55.1]} 26. Rf8 {[%clk
0:01:08]} 26... Rd7 {[%clk 0:01:51.8]} 27. Bg4 {[%clk 0:01:02.9]} 27... Re7
{[%clk 0:01:51.8]} 28. Rc8+ {[%clk 0:01:02.8]} 28... Kb6 {[%clk 0:01:50.6]} 29.
Bf3 {[%clk 0:00:57.7]} 29... Kb5 {[%clk 0:01:49.4]} 30. Bd5 {[%clk 0:00:51.8]}
30... Kb4 {[%clk 0:01:43.9]} 31. Rf8 {[%clk 0:00:49.3]} 31... Bd4+ {[%clk
0:01:44.4]} 32. Kf1 {[%clk 0:00:47.9]} 32... f6 {[%clk 0:01:45.3]} 33. Ra8
{[%clk 0:00:44.1]} 33... a6 {[%clk 0:01:41.9]} 34. Ra7 {[%clk 0:00:44.2]} 34...
Ka3 {[%clk 0:01:34.6]} 35. Bxb7 {[%clk 0:00:40.3]} 35... Kxa2 {[%clk 0:01:28]}
36. Rxa6+ {[%clk 0:00:30.6]} 36... Kxb3 {[%clk 0:01:26.6]} 37. Bd5+ {[%clk
0:00:31.3]} 37... Kb4 {[%clk 0:01:21.6]} 38. Rb6+ {[%clk 0:00:26.7]} 38... Kc3
{[%clk 0:01:21.9]} 39. Rb3+ {[%clk 0:00:25.7]} 39... Kc2 {[%clk 0:01:22.3]} 40.
Rb8 {[%clk 0:00:21.4]} 40... Kd3 {[%clk 0:01:19.2]} 41. Rb3+ {[%clk 0:00:20.2]}
41... Bc3 {[%clk 0:01:18.9]} 42. Rb5 {[%clk 0:00:20.2]} 42... Kd4 {[%clk
0:01:15.7]} 43. Bg8 {[%clk 0:00:19.6]} 43... h5 {[%clk 0:01:14]} 44. Bh7 {[%clk
0:00:19.1]} 44... Ra7 {[%clk 0:01:11.2]} 45. Kg2 {[%clk 0:00:18.2]} 45... c4
{[%clk 0:01:09.6]} 46. Bg8 {[%clk 0:00:16.3]} 46... Bd2 {[%clk 0:01:09.1]} 47.
Kf3 {[%clk 0:00:16.3]} 47... Ra3+ {[%clk 0:01:07.8]} 48. Ke2 {[%clk 0:00:16.3]}
48... Kc3 {[%clk 0:01:00.2]} 49. Rc5 {[%clk 0:00:15.6]} 49... Ra4 {[%clk
0:00:55.8]} 50. Bxc4 {[%clk 0:00:14.2]} 50... Rxc4 {[%clk 0:00:54.7]} 51. Rxc4+
{[%clk 0:00:15.1]} 51... Kxc4 {[%clk 0:00:55.6]} 52. Kxd2 {[%clk 0:00:15.7]}
52... Kd4 {[%clk 0:00:56]} 53. Ke2 {[%clk 0:00:14.9]} 53... Ke4 {[%clk
0:00:56.6]} 54. Kf2 {[%clk 0:00:15.4]} 54... Kd3 {[%clk 0:00:39.2]} 55. Kf3
{[%clk 0:00:15]} 55... Kd4 {[%clk 0:00:32.6]} 56. h3 {[%clk 0:00:15.4]} 56...
Kd3 {[%clk 0:00:31.3]} 57. g4 {[%clk 0:00:15.9]} 57... h4 {[%clk 0:00:30.4]} 58.
g5 {[%clk 0:00:16.3]} 58... f5 {[%clk 0:00:30]} 59. g6 {[%clk 0:00:11.8]} 59...
Kd4 {[%clk 0:00:28.5]} 60. Ke2 {[%clk 0:00:11.8]} 60... Ke4 {[%clk 0:00:28.7]}
61. Kf2 {[%clk 0:00:12.7]} 61... Kxf4 {[%clk 0:00:29]} 62. Ke2 {[%clk
0:00:12.9]} 62... Kg5 {[%clk 0:00:29.6]} 63. Kf3 {[%clk 0:00:13.8]} 63... Kxg6
{[%clk 0:00:29.2]} 64. Kf4 {[%clk 0:00:14.7]} 64... Kf6 {[%clk 0:00:29.7]} 65.
Kf3 {[%clk 0:00:15.6]} 65... g5 {[%clk 0:00:30.1]} 66. Ke3 {[%clk 0:00:16.3]}
66... g4 {[%clk 0:00:30.6]} 67. hxg4 {[%clk 0:00:17.1]} 67... fxg4 {[%clk
0:00:30.6]} 68. Kf4 {[%clk 0:00:18]} 68... h3 {[%clk 0:00:30.1]} 0-1